Cogmind - Beta 17 @@@ ROGUE MODE // 2026.07.05 @ 11:44:53 Player: NeoBioHazard Result: Destroyed by FU-YCQ(R) with Subdweller Machine Gun Performance ------------- Evolutions (0) 0 Regions Visited (2) 400 Robots Destroyed (22) 110 Value Destroyed (472) 472 Prototype IDs (0) 0 Alien Tech Used (0) 0 Bonus (5500) 5500 TOTAL SCORE: 6482 Bonus ------- Prayed to X0-1V1 5000 Major X0-1V1 Interference 500 Cogmind --------- Core Integrity 0/250 Matter 256/300 Energy 250/250 System Corruption 0% Temperature Cool (0) Movement Core (200) Ox3 Location -10/Subcaves Parts ------- > --- POWER (1) -------- Ion Engine > --- PROPULSION (2) --- (None) > --- UTILITY (2) ------ Small Storage Unit > --- WEAPON (2) ------- (None) > --- INVENTORY (8) ---- Aluminum Leg Aluminum Leg High-capacity Matter Pod (77) X0-1V1's Piety Tracker Peak State ------------ > --- POWER ------------ Ion Engine > --- PROPULSION ------- Aluminum Leg Aluminum Leg > --- UTILITY ---------- Small Storage Unit Improved Terrain Scanner > --- WEAPON ----------- Assault Rifle Light Assault Rifle > --- INVENTORY -------- Ion Engine EM Pulse Gun [Rating: 9] Favorites ----------- Power Ion Engine Engine Ion Engine Propulsion Aluminum Leg Leg Aluminum Leg Utility Small Storage Unit Device Improved Terrain Scanner Storage Small Storage Unit Protection Light Armor Plating Weapon Light Assault Rifle Ballistic Gun Light Assault Rifle Build | -11 -10 -10 ------- Run | Yrd Mat Sub Slots Evolved . | . . . Power . | . . . Propulsion . | . . . Utility . | . . . Weapon . | . . . Parts Attached 19 | 7 10 2 Power 3 | 1 1 1 Engine 3 | 1 1 1 Core . | . . . Reactor . | . . . Propulsion 8 | 2 6 . Treads . | . . . Leg 8 | 2 6 . Wheel . | . . . Hover . | . . . Flight . | . . . Utility 4 | 2 1 1 Device 1 | 1 . . Storage 1 | 1 . . Processor . | . . . Hackware . | . . . Protection 2 | . 1 1 Artifact . | . . . Weapon 4 | 2 2 . Energy Gun . | . . . Energy Cannon . | . . . Ballistic Gun 4 | 2 2 . Ballistic Cannon . | . . . Launcher . | . . . Special Weapon . | . . . Impact Weapon . | . . . Slashing Weapon . | . . . Piercing Weapon . | . . . Special Melee Weapon . | . . . Unidentified Prototypes . | . . . Parts Lost 9 | . . 9 Power 1 | . . 1 Propulsion 2 | . . 2 Utility 2 | . . 2 Weapon 4 | . . 4 Highest Loss Streak 9 | . . 9 To Critical Strikes 1 | . . 1 Average Backups 5 | 1 5 7 Power 1 | . 1 . Propulsion 1 | . 1 2 Utility 1 | . . 2 Weapon 2 | . 2 1 Tool/Special . | . . . Unused Backups 3 | . 2 1 Power . | . . . Propulsion . | . . . Utility 1 | . . 1 Weapon 2 | . 2 . Tool/Special . | . . . Average Slot Usage (%) 99 | . 100 95 Engine 14 | . 14 14 Leg 27 | . 28 25 Device 6 | . 7 . Storage 14 | . 14 14 Protection 7 | . 6 11 Ballistic Gun 28 | . 28 28 Peak Build Rating 9 | 9 9 9 Average Rating 7 | 5 8 8 On Entrance 6 | . 9 9 Avg Prop Armor Cover (%) . | . . . Naked Turns . | . . . Heaviest Build 15 | 14 15 15 Greatest Support 20 | 20 20 20 Greatest Overweight (x) 3 | . . 3 Average Overweight (x) . | . . . Largest Inventory Capacity 8 | 8 8 8 Average Capacity 7 | 6 8 8 Most Carried 8 | 2 8 8 Average Carried 5 | 1 5 7 Final Capacity 8 | 8 8 8 Final Carried 8 | 2 8 4 Class Distribution -------------------- 58% | Scavenger-Mutant 41% | Mutant Dominant Class ---------------- Scavenger-Mutant | -10/Materials Scavenger-Mutant | -10/Subcaves Resources | -11 -10 -10 ----------- Run | Yrd Mat Sub Matter Collected 663 | 310 353 . Remotely . | . . . Salvage Created 787 | 111 633 43 Parts 50 | 6 41 3 Haulers Intercepted 1 | . 1 . Recyclers Shooed 1 | . 1 . Parts Field Recycled . | . . . Retrieved Matter . | . . . Parts Self-Destructed . | . . . Prevented . | . . . Parts Restored . | . . . Kills | -11 -10 -10 ------- Run | Yrd Mat Sub Combat Hostiles Destroyed 16 | . 15 1 Guns 16 | . 15 1 Classes Destroyed 7 | 2 4 1 Tunneler 1 | 1 . . Hauler 1 | . 1 . Recycler 2 | 1 1 . Watcher 2 | . 2 . Swarmer 6 | . 6 . Grunt 9 | . 9 . Subdweller 1 | . . 1 Best Kill Streak 5 | 1 5 1 Combat Bots Only 4 | . 4 1 Max Kills in Single Turn 1 | 1 1 1 Gunslinging . | . . . Exploded . | . . . Melee . | . . . Uniques/NPCs Destroyed . | . . . Combat | -11 -10 -10 -------- Run | Yrd Mat Sub Hostile Shots Fired 125 | . 72 53 Missed 33 | . 19 14 Hits 92 | . 53 39 Projectile 92 | . 53 39 Critical Strikes 2 | . 1 1 Damage Taken 1405 | . 600 805 Core 260 | . 108 152 Absorbed by Shields . | . . . Core Remaining (%) 100 | 100 . . Volleys Fired 93 | 10 67 16 Largest 2 | 2 2 2 Hottest 40 | 40 40 40 Shots Fired 185 | 20 134 31 Gun 185 | 20 134 31 Cannon . | . . . Launcher . | . . . Special . | . . . Kinetic 185 | 20 134 31 Thermal . | . . . Explosive . | . . . Electromagnetic . | . . . Robot Hit Streak 15 | 4 13 15 Robot Miss Streak 4 | 3 4 2 Penetration Max . | . . . Secondary Targets 2 | . 2 . Max Gunslinging Chain 1 | . 1 . Shots Hit Robots 129 | 12 90 27 Core Hits 50 | 4 39 7 Critical Kills . | . . . Critical Parts Destroyed 3 | . 3 . Critical Strikes 3 | . 3 . Destroy 3 | . 3 . Melee Attacks . | . . . Impact . | . . . Slashing . | . . . Piercing . | . . . Sneak Attacks . | . . . Combat Hostiles . | . . . Follow-up Attacks . | . . . Damage Inflicted 1194 | 136 811 247 Guns 1194 | 136 811 247 Cannons . | . . . Explosions . | . . . Melee . | . . . Ramming . | . . . Kinetic 1194 | 136 811 247 Thermal . | . . . Explosive . | . . . Electromagnetic . | . . . Impact . | . . . Slashing . | . . . Piercing . | . . . Highest Corruption . | . . . Average Corruption . | . . . Corruption Purged . | . . . Corruption Blocked . | . . . Overload Shots . | . . . Overflow Damage . | . . . Projectiles . | . . . Explosions . | . . . Melee . | . . . Knockbacks . | . . . Impact . | . . . Kinetic . | . . . Secondary . | . . . Self-Inflicted Damage . | . . . Shots . | . . . Rammed . | . . . Targets Rammed . | . . . Kicked . | . . . Crushed . | . . . Highest Temperature 66 | . 66 . Average Temperature 20 | . 20 . Received Heat Transfer 303 | . 219 84 Siege Activations . | . . . Martial Activations . | . . . Shielding Activations . | . . . Robots Disrupted . | . . . Combat Hostiles . | . . . Robots Corrupted . | . . . Combat Hostiles . | . . . Parts Fried . | . . . Impact Corruptions . | . . . Robots Melted . | . . . Combat Hostiles . | . . . Parts Melted . | . . . Heat Transferred . | . . . Parts Sabotaged . | . . . Parts Stolen . | . . . Parts Stripped . | . . . Power Chain Reactions . | . . . Alert | -11 -10 -10 ------- Run | Yrd Mat Sub Maximum Alert Level . | . . . Low Security (%) 100 | 100 100 . Level 1 . | . . . Level 2 . | . . . Level 3 . | . . . Level 4 . | . . . Level 5 . | . . . High Security . | . . . Max Security . | . . . Peak Influence 196 | 5 196 . Initial . | . . . Average 86 | . 96 . Influence Increases 401 | 10 391 . Destroy 0b10 Robot/C 300 | . 300 . Destroy 0b10 Robot/NC 30 | 10 20 . Destroy Leader 56 | . 56 . Lose Combat Pursuer 15 | . 15 . Influence Decreases 401 | 10 317 74 Entered New Map 36 | . . 36 Time Decay 365 | 10 317 38 Squads Dispatched 2 | . 2 . Investigation 1 | . 1 . Extermination . | . . . Reinforcement 1 | . 1 . Assault . | . . . Garrison . | . . . Intercept . | . . . Searches Triggered . | . . . Construction Impeded . | . . . Haulers Reinforced . | . . . Active Scanning Responses . | . . . Cargo Convoy Interrupts . | . . . Stealth | -11 -10 -10 --------- Run | Yrd Mat Sub Distress Signals 2 | . 2 . Communications Jammed . | . . . Distress Signals . | . . . Times Spotted 26 | . 20 6 Peak Tracking Total 4 | . 4 3 Tactical Retreats 2 | . 1 1 Traps | -11 -10 -10 ------- Run | Yrd Mat Sub Traps Triggered 2 | . 2 . Indirectly . | . . . Trap Hack Attempts . | . . . Triggered . | . . . Disarmed . | . . . Reprogrammed . | . . . Reused . | . . . Traps Extracted . | . . . Installed . | . . . Triggered . | . . . Machines | -11 -10 -10 ---------- Run | Yrd Mat Sub Machines Disabled . | . . . Max in Single Turn . | . . . Machines Repaired . | . . . Machines Dismantled . | . . . Machines Sabotaged . | . . . Overloaded Fab Kills . | . . . Hacking | -11 -10 -10 --------- Run | Yrd Mat Sub Machines Accessed 3 | . 3 . Terminals 3 | . 3 . Fabricators . | . . . Repair Stations . | . . . Recycling Units . | . . . Scanalyzers . | . . . Garrison Access . | . . . Total Hacks 5 | . 5 . Successful 2 | . 2 . Failed 3 | . 3 . Catastrophic 1 | . 1 . Database Lockouts . | . . . Manual 6 | . 6 . Terminals 5 | . 5 . Fabricators . | . . . Repair Stations . | . . . Recycling Units . | . . . Scanalyzers . | . . . Garrison Access . | . . . Terminal Hacks 1 | . 1 . Robot Analysis 1 | . 1 . Fabricator Hacks . | . . . Repair Station Hacks . | . . . Recycling Unit Hacks . | . . . Scanalyzer . | . . . Garrison Access Hacks . | . . . Unauthorized Hacks 1 | . 1 . Terminals 1 | . 1 . Botnet 1 | . 1 . Fabricators . | . . . Repair Stations . | . . . Recycling Units . | . . . Scanalyzers . | . . . Garrison Access . | . . . Data Cores Recovered . | . . . Used . | . . . Hacking Detections 3 | . 3 . Full Trace Events . | . . . Feedback Events . | . . . Feedback Blocked . | . . . Robot Schematics Acquired . | . . . Robots Built . | . . . Authchips . | . . . Time . | . . . Total Robot Build Rating . | . . . Part Schematics Acquired . | . . . Parts Built . | . . . Authchips . | . . . Time . | . . . Total Part Build Rating . | . . . Part Studies Acquired . | . . . Parts Repaired . | . . . Time . | . . . Parts Recycled . | . . . Recycled Matter . | . . . Retrieved Matter . | . . . Retrieved Components . | . . . Parts Scanalyzed . | . . . Part Schematics Acquired . | . . . Parts Damaged . | . . . Bothacking | -11 -10 -10 ------------ Run | Yrd Mat Sub Used RIF Installer . | . . . Robots Hacked . | . . . Non-combat . | . . . Combat . | . . . Robot Hacks Applied . | . . . Relay Couplers Released . | . . . Fabnet Peak Effective % . | . . . Robots Rewired . | . . . Allies Hacked . | . . . Hacks Repelled . | . . . Allies | -11 -10 -10 -------- Run | Yrd Mat Sub Total Allies . | . . . Largest Group . | . . . Highest-Rated Group . | . . . Highest-Rated Ally . | . . . Total Orders . | . . . Ally Attacks . | . . . Total Damage . | . . . Kills . | . . . Allies Corrupted . | . . . Allies Melted . | . . . X0-1V1 Amusement Gains 93 | . 3 90 Good Acts 2 | . . 2 Bad Acts 1 | . . 1 Intel | -11 -10 -10 ------- Run | Yrd Mat Sub Active Infowar (turns) 478 | 17 461 . Terrain 478 | 17 461 . Robot Analysis Total 1 | . 1 . Derelict Logs Recovered . | . . . Drone Launches . | . . . Drone Recoveries . | . . . Exploration | -11 -10 -10 ------------- Run | Yrd Mat Sub Turns Passed 1177 | 98 883 196 Spaces Moved 672 | 49 545 78 Core 2 | 1 . 1 Treads . | . . . Legs 670 | 48 545 77 Wheels . | . . . Hover . | . . . Flight . | . . . Fastest Speed 50 | 50 120 120 Average Speed 120 | 118 120 121 Slowest Speed 200 | 120 120 200 Overloaded Moves . | . . . Propulsion Burnouts . | . . . Robots Hopped . | . . . Potential Cave-ins . | . . . Cave-ins Triggered . | . . . Exploration Rate (%) 29 | 3 79 6 Regions Visited 2 Branch Regions 1 Pre-discovered Areas . | . . . Known Exits Taken . | . . . Unknown Exits Taken 2 | 1 1 . Scrap Searched . | . . . Spaces Dug . | . . . Terrain Destroyed . | . . . Melee . | . . . Projectile . | . . . AOE . | . . . Terrain Rammed . | . . . Walls Destroyed . | . . . Machines Disabled . | . . . Actions | -11 -10 -10 --------- Run | Yrd Mat Sub Total 883 | 67 661 155 Wait 86 | . 29 57 Move 670 | 48 544 78 Hop . | . . . Pick Up 6 | 2 4 . Fast Attach 7 | 7 . . Attach 4 | . . 4 Detach . | . . . Swap 10 | . 10 . Drop 7 | . 7 . Fire 93 | 10 67 16 Melee . | . . . Ram . | . . . Kick . | . . . Crush . | . . . Escape Stasis . | . . . Rewire . | . . . Trap . | . . . Miscellaneous . | . . . Route ------- -11/Scrapyard -10/Materials (discovered 4 exits: [*Mat x2] / [*Min] / [*Sub]) -10/Subcaves History --------- Turn | Location | Event 14 | -11/Scrapyard | Discovered new exit (range 16) 99 | -11/Scrapyard | Entered Materials 312 | -10/Materials | Build established: Mutant 396 | -10/Materials | Discovered new exit (range 12) 680 | -10/Materials | Discovered new exit (range 4) 764 | -10/Materials | Discovered new exit (range 14) 935 | -10/Materials | Build established: Scavenger-Mutant 969 | -10/Materials | Discovered new exit (range 8) 978 | -10/Materials | Prayed at D.C.S.S. Altar Unit 982 | -10/Materials | Entered Subcaves 983 | -10/Subcaves | Approached by a straggling Scientist 1134 | -10/Subcaves | X0-1V1 sent you into danger 1140 | -10/Subcaves | Shifting Twisted Machinery released Riot Gun 1143 | -10/Subcaves | Core integrity fell below 50% 1163 | -10/Subcaves | Core integrity fell below 20% 1178 | -10/Subcaves | Destroyed by FU-YCQ(R) with Subdweller Machine Gun Last Messages --------------- 00983_ PL-B28(c): "Thank the algorithms! I was beginning to lose hope I'd never make it past all the Subs lurking out here." PL-B28(c): "I think it's somewhere northeast of here" 01060_ X0-1V1 makes important surrounding features appear closer to you (+3 sight range). 01091_ X0-1V1 points here and there (1 item location revealed). 01134_ X0-1V1: "Enjoy the ride!" Riot Gun falls loose from the Twisted Machinery. 01148_ Lgt. Armor Plating destroyed. 01150_ Lgt. Assault Rifle destroyed. 01152_ Ion Engine destroyed. 01156_ Lgt. Armor Plating destroyed. 01158_ Aluminum Leg destroyed. 01161_ 4D-VR7(R) destroyed. 01166_ Aluminum Leg destroyed. 01172_ Lgt. Assault Rifle destroyed. 01176_ Critical hit (Destroy). 01176_ Assault Rifle destroyed. 01176_ X0-1V1 is amused. 01178_ X0-1V1 howls with laughter! Map ----- +----------------------------------------------------+ | ?????????????????????????????????????????????????? | | ?????????????????????????????????????????????????? | | ?????????????????????????????????????????????????? | | ?????????????????????????????????????????????????? | | ?????????????????????????????????????????????????? | | ??????????????????????######?????????????????????? | | ??????????????????????# ##????????????????????? | | ??????????????????????# #########????????????? | | ??????????????????????# ## #??????####??? | | ??????????????????????## ##????## ##?? | | ???????????????????????## ####?# #?? | | ???????????????????????## ## # ### #?? | | ???????????????????????# ## ## ##?? | | ???????????????????????## # #### ##??? | | ????????????????????????## ## #?## ## #???? | | ?????????????????????????## ##??##### ##???? | | ??????????????????????????### ##?????# #????? | | ????????????????????????????## #?????# #????? | | ?????????????????????????????# #?????# ##???? | | ?????????????????????##??????# ##???## #???? | | ?????????????????##### #?????# ##### ##???? | | ?????????????????#" #????### #????? | | ?????????????????#[ " ##??#### ###??? | | ?????????????????# " " ## ### ## #??? | | ????????????????????#"" ### ## ##??? | | ????????????????????#" !@ #?# #???? | | ????????????????????# R## R%*### ##??? | | ????????????????? ??# = ## ### ##?? | | ????????????????# ????# ### #?### #?? | | ????????????????# ### ?????# ## ## # #?? | | ????????????????#???## ??????# #?? | | ?????????????????????#"??????# ##?? | | ?????????????????????#???????# """ ##??? | | ?????????????????????????????# ## ######" #???? | | ?????????????????????????????###? #????#" ##???? | | ????????????????????????????????## #????? ????? | | ????????????????????????????????? ????? " ????? | | ?????????????????????????????????# ????""" ???? | | ????????????????????????????????? "" ?????""???? | | ?????????????????????????????????# #"#?????? ???? | | ?????????????????????????????????######??????????? | | ?????????????????????????????????????????????????? | | ?????????????????????????????????????????????????? | | ?????????????????????????????????????????????????? | | ?????????????????????????????????????????????????? | | ?????????????????????????????????????????????????? | | ?????????????????????????????????????????????????? | | ?????????????????????????????????????????????????? | | ?????????????????????????????????????????????????? | | ?????????????????????????????????????????????????? | +----------------------------------------------------+ Best States ------------- Heat Dissipation 25 Energy Generation 10 Energy Capacity 250 Matter Stores 300 Matter Capacity 300 Sight Range 19 Terrain Scan Range 16 Terrain Scan Density 10 Armor Coverage 150 Evasion (%) 55 Item Schematics ----------------- None Robot Schematics ------------------ None Fabricated ------------ Nothing Repaired ---------- Nothing Studied --------- None Alien Tech Used ----------------- None Achievements -------------- None Challenges ------------ None Game ------ Seed DrainedShieldWheel Manual? 0 Play Time 00:08:15 Cumulative 245.7 hours Start 2026.07.05 @ 11:37:25 End 2026.07.05 @ 11:44:53 Sessions 1 Manual Loads 0 Difficulty Rogue Special Mode None Game No. 401 Rogue 238 Adventurer 15 Explorer 148 Win Type - Total 27 Types 26/0/0/1/0/0/0/0/0/0 Lore% 65 Gallery% 64 Achievement% 57 Wizard Run 0 Options --------- Layout 0 ASCII 0 Keyboard 1 Movement Numpad Keybinds 0 Fullscreen 2 Font 18/SmallcapsGlow Map View 76x50 Zoom Use 0% Tactical HUD 1 Map Filters NONE Filters NONE Steam 1 RUN: 487e2b98-538a-4d2f-a2c8-58d768b11640